Cogmind - Beta 13 @@@ ROGUE MODE // 2024.04.08 @ 01:37:36 Player: tjylse Result: Destroyed by D-53 Grenadier with Mini Grenade Launcher Performance ------------- Evolutions (1) 500 Regions Visited (3) 600 Robots Destroyed (21) 105 Value Destroyed (568) 568 Prototype IDs (0) 0 Alien Tech Used (0) 0 Bonus (-12) -12 TOTAL SCORE: 1761 Bonus ------- Friendly Fire -12 Cogmind --------- Core Integrity 0/400 Matter 295/300 Energy 140/140 System Corruption 7% Temperature Cool (0) Movement Walking (125) Location -9/Mines Parts ------- > --- POWER (1) -------- Light Deuterium Engine > --- PROPULSION (3) --- Titanium Leg Flexi-carbon Leg > --- UTILITY (3) ------ Small Storage Unit Visual Processing Unit Hacking Suite > --- WEAPON (2) ------- Small Laser Small Laser > --- INVENTORY (8) ---- Ion Engine Light Deuterium Engine Aluminum Leg Improved Aluminum Leg Titanium Leg Titanium Leg Peak State ------------ > --- POWER ------------ Light Deuterium Engine > --- PROPULSION ------- Titanium Leg Titanium Leg Flexi-carbon Leg > --- UTILITY ---------- Small Storage Unit Visual Processing Unit Hacking Suite > --- WEAPON ----------- Heavy EM Pulse Gun Small Laser > --- INVENTORY -------- Ion Engine Light Deuterium Engine Light Deuterium Engine Aluminum Leg Improved Aluminum Leg Titanium Leg Titanium Leg Small Laser [Rating: 24] Favorites ----------- Power Light Deuterium Engine Engine Light Deuterium Engine Propulsion Titanium Leg Leg Titanium Leg Flight Unit Flight Unit Utility Small Storage Unit Device Long-range Tractor Beam Storage Small Storage Unit Processor Visual Processing Unit Hackware Hacking Suite Weapon Assault Rifle Energy Gun Heavy EM Pulse Gun Ballistic Gun Assault Rifle Build | -11 -10 -9 -9 ------- Run | Yrd Mat Mat Min Slots Evolved 2 | . . 2 . Power . | . . . . Propulsion 1 | . . 1 . Utility 1 | . . 1 . Weapon . | . . . . Parts Attached 28 | 7 1 14 6 Power 3 | 1 . 1 1 Engine 3 | 1 . 1 1 Core . | . . . . Reactor . | . . . . Propulsion 12 | 2 . 7 3 Treads . | . . . . Leg 9 | 2 . 4 3 Wheel . | . . . . Hover . | . . . . Flight 3 | . . 3 . Utility 5 | 2 1 2 . Device 2 | 1 . 1 . Storage 1 | 1 . . . Processor 1 | . 1 . . Hackware 1 | . . 1 . Protection . | . . . . Artifact . | . . . . Weapon 8 | 2 . 4 2 Energy Gun 3 | . . 1 2 Energy Cannon . | . . . . Ballistic Gun 5 | 2 . 3 . Ballistic Cannon . | . . . . Launcher . | . . . . Special Weapon . | . . . . Impact Weapon . | . . . . Slashing Weapon . | . . . . Piercing Weapon . | . . . . Special Melee Weapon . | . . . . Unidentified Prototypes . | . . . . Parts Lost 10 | . 1 5 4 Power 1 | . . . 1 Propulsion 2 | . . 1 1 Utility 2 | . 1 1 . Weapon 5 | . . 3 2 Highest Loss Streak 3 | . 1 3 2 To Critical Strikes . | . . . . Average Slot Usage (%) 94 | . 98 91 96 Engine 11 | . 14 11 11 Leg 30 | . 28 31 30 Device 5 | . 10 5 . Storage 11 | . 14 11 11 Processor 8 | . 1 11 11 Hackware 2 | . . . 11 Energy Gun 6 | . . 3 20 Ballistic Gun 15 | . 28 16 . Naked Turns . | . . . . Heaviest Build 15 | 15 15 15 14 Greatest Support 54 | 20 20 51 54 Greatest Overweight (x) 3 | . . 3 . Average Overweight (x) . | . . . . Largest Inventory Capacity 8 | 8 8 8 8 Average Capacity 7 | 7 8 8 8 Most Carried 8 | 6 7 8 8 Average Carried 6 | 3 6 6 7 Final Capacity 8 | 8 8 8 8 Final Carried 7 | 6 7 7 6 Class Distribution -------------------- 90% | Mutant 9% | Scavenger-Mutant Dominant Class ---------------- Mutant | -10/Materials Mutant | -9/Materials Mutant | -9/Mines Resources | -11 -10 -9 -9 ----------- Run | Yrd Mat Mat Min Matter Collected 758 | 255 116 347 40 Remotely 277 | . . 277 . Salvage Created 803 | 23 106 465 209 Parts 50 | 4 7 32 7 Haulers Intercepted . | . . . . Recyclers Shooed . | . . . . Parts Field Recycled . | . . . . Retrieved Matter . | . . . . Parts Self-Destructed . | . . . . Prevented . | . . . . Kills | -11 -10 -9 -9 ------- Run | Yrd Mat Mat Min Combat Hostiles Destroyed 22 | . 3 12 7 Guns 21 | . 3 11 7 AOE 1 | . . 1 . Classes Destroyed 9 | 1 3 3 2 Tunneler 1 | 1 . . . Operator 1 | . . 1 . Watcher 1 | . 1 . . Swarmer 5 | . 2 3 . Grunt 9 | . 1 6 2 Brawler 1 | . . 1 . Duelist 1 | . . . 1 Sentry 2 | . . 2 . Assembled 4 | . . . 4 Best Kill Streak 4 | 1 4 3 4 Combat Bots Only 4 | . 3 3 4 Max Kills in Single Turn 2 | 1 2 1 1 Gunslinging 1 | . 1 . . Exploded 1 | . . 1 . Melee . | . . . . Uniques/NPCs Destroyed . | . . . . Combat | -11 -10 -9 -9 -------- Run | Yrd Mat Mat Min Hostile Shots Fired 183 | . 55 95 33 Missed 46 | . 15 25 6 Damage Taken 1867 | . 360 949 558 Core 500 | . 74 196 230 Absorbed by Shields . | . . . . Core Remaining (%) 85 | 100 70 . . Volleys Fired 78 | 1 15 43 19 Largest 2 | 2 2 2 2 Hottest 85 | 40 40 65 85 Shots Fired 155 | 2 30 85 38 Gun 155 | 2 30 85 38 Cannon . | . . . . Launcher . | . . . . Special . | . . . . Kinetic 113 | 2 30 78 3 Thermal 27 | . . . 27 Explosive . | . . . . Electromagnetic 15 | . . 7 8 Robot Hit Streak 11 | 1 11 8 7 Robot Miss Streak 5 | . 2 4 5 Penetration Max . | . . . . Secondary Targets 3 | . 1 1 1 Max Gunslinging Chain 1 | . 1 1 1 Shots Hit Robots 91 | 1 21 49 20 Core Hits 44 | 1 6 23 14 Critical Kills . | . . . . Critical Parts Destroyed . | . . . . Critical Strikes . | . . . . Melee Attacks . | . . . . Impact . | . . . . Slashing . | . . . . Piercing . | . . . . Sneak Attacks . | . . . . Combat Hostiles . | . . . . Follow-up Attacks . | . . . . Damage Inflicted 1272 | 13 265 718 276 Guns 1195 | 13 265 641 276 Cannons . | . . . . Explosions 77 | . . 77 . Melee . | . . . . Ramming . | . . . . Kinetic 832 | 13 265 544 10 Thermal 257 | . . 77 180 Explosive . | . . . . Electromagnetic 183 | . . 97 86 Impact . | . . . . Slashing . | . . . . Piercing . | . . . . Highest Corruption 7 | . . . 7 Average Corruption 6 | . . . 6 Corruption Purged . | . . . . Corruption Blocked . | . . . . Effects 3 | . . . 3 Heat Flow Errors 1 | . . . 1 Parts Rejected 1 | . . . 1 Misfires 1 | . . . 1 Overload Shots . | . . . . Overflow Damage . | . . . . Projectiles . | . . . . Explosions . | . . . . Melee . | . . . . Knockbacks . | . . . . Impact . | . . . . Kinetic . | . . . . Secondary . | . . . . Self-Inflicted Damage 44 | . . 44 . Shots 1 | . . 1 . Rammed . | . . . . Targets Rammed . | . . . . Kicked . | . . . . Crushed . | . . . . Highest Temperature 390 | . . 64 390 Average Temperature 120 | . . 25 146 Received Heat Transfer 709 | . 66 363 280 Effects 1 | . . . 1 Shutdowns 1 | . . . 1 Siege Activations . | . . . . Robots Corrupted . | . . . . Combat Hostiles . | . . . . Parts Fried 1 | . . 1 . Impact Corruptions . | . . . . Robots Melted . | . . . . Combat Hostiles . | . . . . Parts Melted . | . . . . Heat Transferred 450 | . . 50 400 Parts Sabotaged . | . . . . Parts Stolen . | . . . . Parts Stripped . | . . . . Power Chain Reactions 1 | . . 1 . Alert | -11 -10 -9 -9 ------- Run | Yrd Mat Mat Min Peak Influence 308 | 5 92 308 137 Initial 62 | . 3 38 62 Average 104 | . 23 153 108 Maximum Alert Level 1 | . . 1 . Low Security (%) 86 | 100 100 71 100 Level 1 13 | . . 28 . Level 2 . | . . . . Level 3 . | . . . . Level 4 . | . . . . Level 5 . | . . . . High Security . | . . . . Max Security . | . . . . Squads Dispatched 2 | . 1 1 . Investigation 1 | . 1 . . Extermination . | . . . . Reinforcement 1 | . . 1 . Assault . | . . . . Garrison . | . . . . Intercept . | . . . . Searches Triggered . | . . . . Construction Impeded . | . . . . Haulers Reinforced . | . . . . Active Scanning Responses . | . . . . Cargo Convoy Interrupts . | . . . . Stealth | -11 -10 -9 -9 --------- Run | Yrd Mat Mat Min Distress Signals 2 | . . 1 1 Communications Jammed . | . . . . Distress Signals . | . . . . Times Spotted 32 | . 7 16 9 Peak Tracking Total 5 | . 5 4 4 Tactical Retreats 1 | . . 1 . Traps | -11 -10 -9 -9 ------- Run | Yrd Mat Mat Min Traps Triggered 1 | . 1 . . Indirectly . | . . . . Trap Hack Attempts . | . . . . Triggered . | . . . . Disarmed . | . . . . Reprogrammed . | . . . . Reused . | . . . . Traps Extracted . | . . . . Installed . | . . . . Triggered . | . . . . Machines | -11 -10 -9 -9 ---------- Run | Yrd Mat Mat Min Machines Disabled . | . . . . Max in Single Turn . | . . . . Machines Repaired . | . . . . Machines Dismantled . | . . . . Machines Sabotaged . | . . . . Overloaded Fab Kills . | . . . . Hacking | -11 -10 -9 -9 --------- Run | Yrd Mat Mat Min Machines Accessed 1 | . 1 . . Terminals 1 | . 1 . . Fabricators . | . . . . Repair Stations . | . . . . Recycling Units . | . . . . Scanalyzers . | . . . . Garrison Access . | . . . . Total Hacks 2 | . 2 . . Successful . | . . . . Failed 2 | . 2 . . Catastrophic 2 | . 2 . . Database Lockouts . | . . . . Manual . | . . . . Terminals 2 | . 2 . . Fabricators . | . . . . Repair Stations . | . . . . Recycling Units . | . . . . Scanalyzers . | . . . . Garrison Access . | . . . . Terminal Hacks . | . . . . Fabricator Hacks . | . . . . Repair Station Hacks . | . . . . Recycling Unit Hacks . | . . . . Scanalyzer . | . . . . Garrison Access Hacks . | . . . . Unauthorized Hacks . | . . . . Terminals . | . . . . Fabricators . | . . . . Repair Stations . | . . . . Recycling Units . | . . . . Scanalyzers . | . . . . Garrison Access . | . . . . Data Cores Recovered 1 | . . 1 . Used . | . . . . Hacking Detections 1 | . 1 . . Full Trace Events . | . . . . Feedback Events . | . . . . Feedback Blocked . | . . . . Robot Schematics Acquired . | . . . . Robots Built . | . . . . Authchips . | . . . . Time . | . . . . Total Robot Build Rating . | . . . . Part Schematics Acquired . | . . . . Parts Built . | . . . . Authchips . | . . . . Time . | . . . . Total Part Build Rating . | . . . . Parts Repaired . | . . . . Time . | . . . . Parts Recycled . | . . . . Recycled Matter . | . . . . Retrieved Matter . | . . . . Retrieved Components . | . . . . Parts Scanalyzed . | . . . . Part Schematics Acquired . | . . . . Parts Damaged . | . . . . Bothacking | -11 -10 -9 -9 ------------ Run | Yrd Mat Mat Min Used RIF Installer . | . . . . Robots Hacked . | . . . . Non-combat . | . . . . Combat . | . . . . Robot Hacks Applied . | . . . . Relay Couplers Released . | . . . . Fabnet Peak Effective % . | . . . . Robots Rewired . | . . . . Allies Hacked . | . . . . Hacks Repelled . | . . . . Allies | -11 -10 -9 -9 -------- Run | Yrd Mat Mat Min Total Allies . | . . . . Largest Group . | . . . . Highest-Rated Group . | . . . . Highest-Rated Ally . | . . . . Total Orders . | . . . . Ally Attacks . | . . . . Total Damage . | . . . . Kills . | . . . . Allies Corrupted . | . . . . Allies Melted . | . . . . Intel | -11 -10 -9 -9 ------- Run | Yrd Mat Mat Min Robot Analysis Total . | . . . . Derelict Logs Recovered 1 | . . . 1 Drone Launches . | . . . . Drone Recoveries . | . . . . Exploration | -11 -10 -9 -9 ------------- Run | Yrd Mat Mat Min Turns Passed 1117 | 92 227 547 251 Spaces Moved 633 | 65 139 294 135 Core 8 | 7 . 1 . Treads . | . . . . Legs 590 | 58 139 258 135 Wheels . | . . . . Hover . | . . . . Flight 35 | . . 35 . Fastest Speed 34 | 50 120 34 125 Average Speed 120 | 112 120 117 128 Slowest Speed 200 | 120 120 200 130 Overloaded Moves . | . . . . Propulsion Burnouts . | . . . . Robots Hopped . | . . . . Cave-ins Triggered . | . . . . Exploration Rate (%) 22 | 5 26 22 36 Regions Visited 3 Branch Regions 1 Pre-discovered Areas 1 | . . . 1 Known Exits Taken . | . . . . Unknown Exits Taken 3 | 1 1 1 . Scrap Searched 1 | . . . 1 Spaces Dug . | . . . . Terrain Destroyed 2 | . . 2 . Melee . | . . . . Projectile . | . . . . AOE 2 | . . 2 . Terrain Rammed . | . . . . Walls Destroyed . | . . . . Machines Disabled . | . . . . Actions | -11 -10 -9 -9 --------- Run | Yrd Mat Mat Min Total 835 | 78 169 413 175 Wait 63 | . 10 41 12 Move 630 | 64 138 293 135 Hop . | . . . . Pick Up 20 | 6 3 9 2 Fast Attach 18 | 7 1 8 2 Attach 9 | . . 6 3 Detach 3 | . . 3 . Swap 1 | . . . 1 Drop 13 | . 2 10 1 Fire 78 | 1 15 43 19 Melee . | . . . . Ram . | . . . . Kick . | . . . . Crush . | . . . . Escape Stasis . | . . . . Rewire . | . . . . Trap . | . . . . Miscellaneous . | . . . . Route ------- -11/Scrapyard -10/Materials -9/Materials (discovered 2 exits: [*Mat] / [*Min]) -9/Mines History --------- Turn | Location | Event 3 | -11/Scrapyard | Discovered new exit (range 16) 93 | -11/Scrapyard | Entered Materials 222 | -10/Materials | Discovered new exit (range 16) 320 | -10/Materials | Entered another Materials area 320 | -9/Materials | Evolved 2 slots: Propulsion x1, Utility x1 341 | -9/Materials | Build established: Mutant 684 | -9/Materials | Discovered new exit (range 18) 744 | -9/Materials | Lost 3 parts (1u2w) 819 | -9/Materials | Discovered new exit (range 17) 867 | -9/Materials | Entered Mines 885 | -9/Mines | Core integrity fell below 50% 901 | -9/Mines | Assembled infested the area 906 | -9/Mines | Assisted by a Guerilla fighting off Assembled 957 | -9/Mines | Found a hidden stash of uninstalled traps 1115 | -9/Mines | Core integrity fell below 20% 1118 | -9/Mines | Destroyed by D-53 Grenadier with Mini Grenade Launcher Last Messages --------------- 01038_ System corrupted: Titanium Leg rejected. 01041_ as-40366 destroyed. 01047_ as-73140 destroyed. 01047_ Switching to secondary target: as-53153. 01054_ as-53153 destroyed. 01060_ System corrupted: FCS attempts to trigger Sml. Laser. 01060_ System corrupted: Sml. Laser misfires. 01069_ as-59484 destroyed. 01071_ Power failure, Lgt. Deuterium Engine shutdown. 01074_ Acquired 17 matter. 01075_ Acquired 3 matter. 01079_ K-01 Serf collects debris. 01081_ Acquired Titanium Leg. 01083_ System corrupted: Heat flow error (+189). 01084_ K-01 Serf collects debris. 01114_ Laser Drill disabled. 01116_ Titanium Leg destroyed. 01116_ K-01 Serf collects debris. Map ----- +----------------------------------------------------+ | ????????? ??????????????????????# #??????????? | | ?????????# ??????????????????????# #??????????? | | ????????## #????????#?????####????# #??????????? | | ?????????# ##???????# ???## ##???# #??????????? | | ?????????# #???????# #### ##### ###????????? | | ?????????# #???????# #????????? | | ??????#### #???????# &&& #????????? | | ?????## #????????# & ###### #????????? | | ##### % ###??????### &##????#!=#????????? | | $ %#####?????## ##?????#%!#????????? | | %% % ##?????# ##??????#| #????????? | | ??# % ####### ##??????# #????????? | | ??# % = ##?????# ????????? | | ??## ##### ########k #?????# #???????? | | ???#### ##???####??????# #?????### ???????? | | ??????# ###????###??????## #???????? ??????? | | ??????# ??????## #????## ##????????###??????? | | ??????# ?####### #??## #??###?????????????? | | ??????# ### ### ##????????????? | | ??????#?????????# % #????????????? | | ?????????######## k ##???????????? | | ??????# #???????????? | | ?????????######### %% #???????????? | | ?????????????????#### ##???????????? | | ????????????????????## ##????????????? | | ?????????????????????# @ #####?????????????? | | ?????????????????????## #?????????????????? | | ??????????????????????# d #?????????????????? | | ?????????????????????# d ##????????????????? | | ?????????????????????## #????????????????? | | ??????????????????????## #????????????????? | | ???????????????????????# ##????????????????? | | ???????????????????????### ##?????????????????? | | ????????????????????????# ##??????????????????? | | ???????????????????????# #???????????????????? | | ???????????????????????# #???????????????????? | | ???????????????????????## #???????????????????? | | ????????????????????????## ##???????????????????? | | ?????????????????????????####????????????????????? | | ?????????????????????????????????????????????????? | | ?????????????????????????????????????????????????? | | ?????????????????????????????????????????????????? | | | | | | | | | | | | | | | | | +----------------------------------------------------+ Best States ------------- Heat Dissipation 28 Energy Generation 14 Energy Capacity 250 Matter Stores 300 Matter Capacity 300 Sight Range 18 Terrain Scan Range 16 Terrain Scan Density 10 Evasion (%) 63 Offensive Hacking 10 Item Schematics ----------------- None Robot Schematics ------------------ None Fabricated ------------ Nothing Alien Tech Used ----------------- None Achievements -------------- Use The Force Challenges ------------ None Game ------ Seed SupercompositeCommAnalyzer Manual? 0 Play Time 00:17:59 Cumulative 9.7 hours Start 2024.04.08 @ 01:22:59 End 2024.04.08 @ 01:37:36 Sessions 1 Manual Loads 0 Difficulty Rogue Special Mode None Game No. 23 Rogue 18 Adventurer 5 Explorer 0 Win Type - Total 0 Types 0/0/0/0/0/0/0/0/0 Lore% 2 Gallery% 19 Achievement% 14 Wizard Run 0 Options --------- Layout 1 ASCII 0 Keyboard 0 Movement Mouse Keybinds 0 Fullscreen 2 Font 32/Dina Map View 50x35 Zoom Use 2% Tactical HUD 1 Map Filters NONE Filters NONE Steam 1 RUN: 78a32a5d-457b-4895-b0ec-514ee6c288a9